[Event "Betsys MČR v online bleskovém šachu 2021"]
[Site "Chess.com"]
[Date "2021.04.17"]
[Round "11"]
[White "sajmon8"]
[Black "Pekibeast"]
[Result "0-1"]
[WhiteElo "1656"]
[BlackElo "1878"]
[TimeControl "180+1"]
[EndTime "10:50:15 PDT"]
[Termination "Uživatel Pekibeast zvítězil po vzdání soupeře"]

1. e4 {[%clk 0:02:50.2]} 1... e6 {[%clk 0:03:00]} 2. d4 {[%clk 0:02:47.8]} 2...
d5 {[%clk 0:02:59.5]} 3. Nc3 {[%clk 0:02:48.3]} 3... dxe4 {[%clk 0:02:59.6]} 4.
Nxe4 {[%clk 0:02:48.5]} 4... Nf6 {[%clk 0:03:00.1]} 5. Bg5 {[%clk 0:02:47.6]}
5... Be7 {[%clk 0:03:00]} 6. Nxf6+ {[%clk 0:02:46.2]} 6... Bxf6 {[%clk
0:03:00.5]} 7. Bxf6 {[%clk 0:02:46.5]} 7... Qxf6 {[%clk 0:03:01.4]} 8. Nf3
{[%clk 0:02:46.9]} 8... O-O {[%clk 0:03:00.5]} 9. Bd3 {[%clk 0:02:46.9]} 9...
Rd8 {[%clk 0:03:00.2]} 10. O-O {[%clk 0:02:47.3]} 10... Nc6 {[%clk 0:02:58.8]}
11. c3 {[%clk 0:02:42.6]} 11... b6 {[%clk 0:02:59.1]} 12. Be4 {[%clk 0:02:40.1]}
12... Bb7 {[%clk 0:02:59.5]} 13. Qe2 {[%clk 0:02:39.9]} 13... Na5 {[%clk
0:02:50.8]} 14. Bxb7 {[%clk 0:02:38]} 14... Nxb7 {[%clk 0:02:51.7]} 15. Rad1
{[%clk 0:02:37.3]} 15... c5 {[%clk 0:02:48.4]} 16. dxc5 {[%clk 0:02:33.1]} 16...
Nxc5 {[%clk 0:02:49.3]} 17. Nd4 {[%clk 0:02:29.7]} 17... e5 {[%clk 0:02:34.1]}
18. Nf3 {[%clk 0:02:20.5]} 18... Re8 {[%clk 0:02:27.7]} 19. Rd5 {[%clk
0:02:10.2]} 19... e4 {[%clk 0:02:25.1]} 20. Nd4 {[%clk 0:02:08.9]} 20... Rad8
{[%clk 0:02:20.6]} 21. Rf5 {[%clk 0:02:07.4]} 21... Qg6 {[%clk 0:02:15.6]} 22.
Rf4 {[%clk 0:01:53.1]} 22... Nd3 {[%clk 0:02:01]} 23. Rg4 {[%clk 0:01:46.3]}
23... Qf6 {[%clk 0:02:00.3]} 24. Rxe4 {[%clk 0:01:43.9]} 24... Rxe4 {[%clk
0:01:59.5]} 25. Qxe4 {[%clk 0:01:42.1]} 25... Nxb2 {[%clk 0:01:55.1]} 26. Re1
{[%clk 0:01:38.8]} 26... h6 {[%clk 0:01:51.6]} 27. h3 {[%clk 0:01:27.9]} 27...
Na4 {[%clk 0:01:47.1]} 28. Nf5 {[%clk 0:01:04.2]} 28... Nxc3 {[%clk 0:01:22.1]}
29. Ne7+ {[%clk 0:00:50.6]} 29... Kh8 {[%clk 0:01:21.2]} 30. Qc4 {[%clk
0:00:45.1]} 30... Re8 {[%clk 0:01:15.3]} 31. Ng6+ {[%clk 0:00:36.5]} 31... Kh7
{[%clk 0:01:06.8]} 32. Rxe8 {[%clk 0:00:34.3]} 32... Kxg6 {[%clk 0:01:07.2]} 33.
Re1 {[%clk 0:00:31.9]} 33... b5 {[%clk 0:00:56.7]} 34. Qd3+ {[%clk 0:00:30.2]}
34... Kg5 {[%clk 0:00:52.6]} 35. Rc1 {[%clk 0:00:28.6]} 35... b4 {[%clk
0:00:50.8]} 36. Qg3+ {[%clk 0:00:26.8]} 36... Kf5 {[%clk 0:00:47.3]} 37. Re1
{[%clk 0:00:25.6]} 37... Qd4 {[%clk 0:00:42.1]} 38. Re3 {[%clk 0:00:16.8]} 38...
Qd1+ {[%clk 0:00:35.5]} 39. Kh2 {[%clk 0:00:16.6]} 39... Qd4 {[%clk 0:00:31.1]}
40. Rf3+ {[%clk 0:00:16.5]} 40... Ke6 {[%clk 0:00:31.3]} 41. Re3+ {[%clk
0:00:14.4]} 41... Kf6 {[%clk 0:00:29.8]} 42. Rd3 {[%clk 0:00:14.6]} 42... Qe5
{[%clk 0:00:28.5]} 43. Rf3+ {[%clk 0:00:12.5]} 43... Ke6 {[%clk 0:00:22.8]} 44.
Re3 {[%clk 0:00:12.3]} 44... Ne4 {[%clk 0:00:23.1]} 45. Rxe4 {[%clk 0:00:11.9]}
45... Qxe4 {[%clk 0:00:22.9]} 46. Qf3 {[%clk 0:00:10.9]} 46... Qxf3 {[%clk
0:00:21.5]} 47. gxf3 {[%clk 0:00:11.8]} 47... a5 {[%clk 0:00:22.3]} 48. Kg3
{[%clk 0:00:11.1]} 48... a4 {[%clk 0:00:22.8]} 49. Kf4 {[%clk 0:00:11.6]} 49...
b3 {[%clk 0:00:23.3]} 0-1

[Event "Betsys MČR v online bleskovém šachu 2021"]
[Site "Chess.com"]
[Date "2021.04.17"]
[Round "11"]
[White "Koli05"]
[Black "tryskomys"]
[Result "0-1"]
[WhiteElo "1808"]
[BlackElo "1616"]
[TimeControl "180+1"]
[EndTime "10:50:15 PDT"]
[Termination "Uživatel tryskomys zvítězil na čas"]

1. d4 {[%clk 0:03:00.9]} 1... d5 {[%clk 0:02:58.1]} 2. c4 {[%clk 0:03:00.9]}
2... Nc6 {[%clk 0:02:57.8]} 3. e3 {[%clk 0:02:59.3]} 3... e5 {[%clk 0:02:56.7]}
4. Nc3 {[%clk 0:02:54.2]} 4... exd4 {[%clk 0:02:47.5]} 5. Nxd5 {[%clk
0:02:53.2]} 5... Nf6 {[%clk 0:02:40.7]} 6. Nxf6+ {[%clk 0:02:43.2]} 6... Qxf6
{[%clk 0:02:39.9]} 7. exd4 {[%clk 0:02:42.6]} 7... Nxd4 {[%clk 0:02:25.2]} 8.
Ne2 {[%clk 0:02:39.2]} 8... Bc5 {[%clk 0:02:06.3]} 9. Be3 {[%clk 0:02:26]} 9...
Nxe2 {[%clk 0:01:29.1]} 10. Qxe2 {[%clk 0:02:23.5]} 10... Bxe3 {[%clk
0:01:28.1]} 11. Qxe3+ {[%clk 0:02:20.7]} 11... Be6 {[%clk 0:01:28]} 12. Bd3
{[%clk 0:02:03]} 12... O-O {[%clk 0:01:26.6]} 13. O-O {[%clk 0:02:01.4]} 13...
Qxb2 {[%clk 0:01:24.4]} 14. Rab1 {[%clk 0:01:56.5]} 14... Qxa2 {[%clk
0:01:23.7]} 15. Rxb7 {[%clk 0:01:52.8]} 15... Bxc4 {[%clk 0:01:21.1]} 16. Rxc7
{[%clk 0:01:40.2]} 16... Bxd3 {[%clk 0:01:19]} 17. Qxd3 {[%clk 0:01:38.5]} 17...
a5 {[%clk 0:01:17.5]} 18. h3 {[%clk 0:01:32.4]} 18... Qe6 {[%clk 0:01:14.4]} 19.
Rd1 {[%clk 0:01:24.9]} 19... a4 {[%clk 0:01:14]} 20. Qa3 {[%clk 0:01:23.8]}
20... h6 {[%clk 0:01:09.8]} 21. Rcd7 {[%clk 0:01:05.9]} 21... Qb3 {[%clk
0:01:07.4]} 22. Qxb3 {[%clk 0:00:57.7]} 22... axb3 {[%clk 0:01:07.3]} 23. Rb1
{[%clk 0:00:57.9]} 23... Rfb8 {[%clk 0:01:06.7]} 24. Kh2 {[%clk 0:00:53.1]}
24... Ra2 {[%clk 0:01:04.4]} 25. Rd3 {[%clk 0:00:51.7]} 25... b2 {[%clk
0:00:57.6]} 26. Rd2 {[%clk 0:00:50.5]} 26... f6 {[%clk 0:00:54.1]} 27. f3 {[%clk
0:00:50.1]} 27... Kf7 {[%clk 0:00:53.8]} 28. Kg3 {[%clk 0:00:49.9]} 28... Kg6
{[%clk 0:00:53.4]} 29. Re2 {[%clk 0:00:47.1]} 29... Rb3 {[%clk 0:00:52.6]} 30.
Rd2 {[%clk 0:00:44.9]} 30... h5 {[%clk 0:00:52.1]} 31. h4 {[%clk 0:00:42.7]}
31... Kf5 {[%clk 0:00:51.1]} 32. Rc2 {[%clk 0:00:40.8]} 32... g5 {[%clk
0:00:49.7]} 33. Rc5+ {[%clk 0:00:36.7]} 33... Kg6 {[%clk 0:00:49.1]} 34. Rc2
{[%clk 0:00:35.8]} 34... Rb4 {[%clk 0:00:48.7]} 35. hxg5 {[%clk 0:00:34.2]}
35... Kxg5 {[%clk 0:00:45.9]} 36. Rc5+ {[%clk 0:00:30.9]} 36... f5 {[%clk
0:00:43.2]} 37. Rc2 {[%clk 0:00:30.6]} 37... Rb3 {[%clk 0:00:42.3]} 38. Rd2
{[%clk 0:00:28.7]} 38... h4+ {[%clk 0:00:39.9]} 39. Kf2 {[%clk 0:00:20.3]} 39...
Rb4 {[%clk 0:00:39.4]} 40. Re2 {[%clk 0:00:15.7]} 40... Kf4 {[%clk 0:00:38.6]}
41. Rd2 {[%clk 0:00:15.7]} 41... Rb3 {[%clk 0:00:35.7]} 42. Rc2 {[%clk
0:00:15.3]} 42... h3 {[%clk 0:00:33.6]} 43. g3+ {[%clk 0:00:12]} 43... Kg5
{[%clk 0:00:32.6]} 44. f4+ {[%clk 0:00:11.3]} 44... Kg4 {[%clk 0:00:31.7]} 45.
Rd2 {[%clk 0:00:02.3]} 45... Rf3+ {[%clk 0:00:30.7]} 46. Ke2 {[%clk 0:00:01.4]}
46... Rxg3 {[%clk 0:00:30.5]} 0-1

[Event "Betsys MČR v online bleskovém šachu 2021"]
[Site "Chess.com"]
[Date "2021.04.17"]
[Round "11"]
[White "viklan"]
[Black "mayerrs"]
[Result "0-1"]
[WhiteElo "1585"]
[BlackElo "1851"]
[TimeControl "180+1"]
[EndTime "10:50:16 PDT"]
[Termination "Uživatel mayerrs zvítězil po vzdání soupeře"]

1. d4 {[%clk 0:03:00.9]} 1... g6 {[%clk 0:02:59.8]} 2. c4 {[%clk 0:03:00.6]}
2... Nf6 {[%clk 0:02:59.7]} 3. Nf3 {[%clk 0:03:01.2]} 3... Bg7 {[%clk
0:03:00.2]} 4. g3 {[%clk 0:03:01.9]} 4... O-O {[%clk 0:03:00.3]} 5. Bg2 {[%clk
0:03:02.4]} 5... d6 {[%clk 0:03:00.8]} 6. O-O {[%clk 0:03:02.8]} 6... a5 {[%clk
0:03:00.7]} 7. Nc3 {[%clk 0:03:03.1]} 7... c6 {[%clk 0:02:59.7]} 8. b3 {[%clk
0:03:02.4]} 8... Re8 {[%clk 0:02:58]} 9. Bb2 {[%clk 0:03:02.1]} 9... Nbd7 {[%clk
0:02:56.7]} 10. e4 {[%clk 0:03:01.2]} 10... e5 {[%clk 0:02:56.5]} 11. Re1 {[%clk
0:03:00.4]} 11... Rb8 {[%clk 0:02:46.1]} 12. Qd2 {[%clk 0:02:57.3]} 12... b5
{[%clk 0:02:44.7]} 13. cxb5 {[%clk 0:02:49.8]} 13... cxb5 {[%clk 0:02:45.6]} 14.
Rac1 {[%clk 0:02:46.8]} 14... b4 {[%clk 0:02:41.1]} 15. Nd5 {[%clk 0:02:39.4]}
15... Bb7 {[%clk 0:02:27.2]} 16. Nxf6+ {[%clk 0:02:32.1]} 16... Nxf6 {[%clk
0:02:28.1]} 17. dxe5 {[%clk 0:02:24.2]} 17... Nxe4 {[%clk 0:02:24.5]} 18. Qd3
{[%clk 0:01:43.7]} 18... dxe5 {[%clk 0:02:11]} 19. Qxd8 {[%clk 0:01:37.9]} 19...
Rbxd8 {[%clk 0:02:11.9]} 20. Nxe5 {[%clk 0:01:31.7]} 20... Nd6 {[%clk
0:02:01.3]} 21. Bxb7 {[%clk 0:01:23.8]} 21... Nxb7 {[%clk 0:02:02.2]} 22. Nc4
{[%clk 0:01:21.2]} 22... Bxb2 {[%clk 0:01:50.9]} 23. Nxb2 {[%clk 0:01:20.4]}
23... Rxe1+ {[%clk 0:01:47.9]} 24. Rxe1 {[%clk 0:01:19.2]} 24... Rd2 {[%clk
0:01:48.4]} 25. Rb1 {[%clk 0:01:15.4]} 25... Nc5 {[%clk 0:01:43.5]} 26. Rc1
{[%clk 0:00:52.7]} 26... Ne4 {[%clk 0:01:30.1]} 27. Rc8+ {[%clk 0:00:44.9]}
27... Kg7 {[%clk 0:01:29.6]} 28. Nc4 {[%clk 0:00:44.9]} 28... Rxa2 {[%clk
0:01:21.2]} 29. Ra8 {[%clk 0:00:43.2]} 29... Nxf2 {[%clk 0:01:08.4]} 30. Rxa5
{[%clk 0:00:40.6]} 30... Rxa5 {[%clk 0:01:08]} 31. Nxa5 {[%clk 0:00:39.7]} 31...
Nd3 {[%clk 0:01:07.4]} 32. Kf1 {[%clk 0:00:36.7]} 32... Kf6 {[%clk 0:01:04.2]}
33. Ke2 {[%clk 0:00:34.4]} 33... Nc5 {[%clk 0:01:04.5]} 34. Nc6 {[%clk
0:00:31.2]} 34... Nxb3 {[%clk 0:01:03.1]} 35. Nxb4 {[%clk 0:00:31.2]} 35... Nd4+
{[%clk 0:01:03.4]} 36. Kf2 {[%clk 0:00:30]} 36... h5 {[%clk 0:01:01.3]} 37. Nd3
{[%clk 0:00:30]} 37... Kf5 {[%clk 0:00:59.8]} 38. Nf4 {[%clk 0:00:29.9]} 38...
Ne6 {[%clk 0:00:58.7]} 39. Ne2 {[%clk 0:00:29.4]} 39... g5 {[%clk 0:00:56.7]}
40. h3 {[%clk 0:00:29.5]} 40... Ke5 {[%clk 0:00:55.1]} 41. Kg2 {[%clk
0:00:27.5]} 41... f5 {[%clk 0:00:54.6]} 42. Nc3 {[%clk 0:00:25.9]} 42... Nd4
{[%clk 0:00:50.5]} 43. Nd1 {[%clk 0:00:23.8]} 43... Ke4 {[%clk 0:00:47.3]} 44.
Nf2+ {[%clk 0:00:23.4]} 44... Ke3 {[%clk 0:00:46.4]} 45. Nd1+ {[%clk 0:00:22.4]}
45... Kd2 {[%clk 0:00:46.5]} 46. Nb2 {[%clk 0:00:21.5]} 46... Ke2 {[%clk
0:00:43.2]} 47. Nc4 {[%clk 0:00:20.8]} 47... f4 {[%clk 0:00:39.8]} 48. gxf4
{[%clk 0:00:12.1]} 48... gxf4 {[%clk 0:00:40.7]} 49. Ne5 {[%clk 0:00:09.1]}
49... Nf5 {[%clk 0:00:35]} 50. Nf3 {[%clk 0:00:05.9]} 50... Ne3+ {[%clk
0:00:32.6]} 51. Kg1 {[%clk 0:00:02.9]} 51... Kxf3 {[%clk 0:00:33.4]} 0-1

[Event "Betsys MČR v online bleskovém šachu 2021"]
[Site "Chess.com"]
[Date "2021.04.17"]
[Round "11"]
[White "MBorkovec"]
[Black "TommyLud"]
[Result "1-0"]
[WhiteElo "2291"]
[BlackElo "2161"]
[TimeControl "180+1"]
[EndTime "10:50:17 PDT"]
[Termination "Uživatel MBorkovec zvítězil matem"]

1. e4 {[%clk 0:03:00.9]} 1... c5 {[%clk 0:02:59.7]} 2. Nf3 {[%clk 0:03:00.6]}
2... e6 {[%clk 0:02:59.8]} 3. d4 {[%clk 0:03:01.2]} 3... cxd4 {[%clk 0:03:00.7]}
4. Nxd4 {[%clk 0:03:01.5]} 4... Nc6 {[%clk 0:03:01.2]} 5. c4 {[%clk 0:03:01.1]}
5... Nf6 {[%clk 0:02:54.6]} 6. Nc3 {[%clk 0:03:00.3]} 6... Bb4 {[%clk
0:02:54.3]} 7. Nxc6 {[%clk 0:02:43.3]} 7... bxc6 {[%clk 0:02:50.8]} 8. e5 {[%clk
0:02:43.5]} 8... Ne4 {[%clk 0:02:49.4]} 9. Qd4 {[%clk 0:02:41.1]} 9... Nxc3
{[%clk 0:02:43.2]} 10. bxc3 {[%clk 0:02:40.4]} 10... Be7 {[%clk 0:02:34.5]} 11.
Bd3 {[%clk 0:02:35.8]} 11... O-O {[%clk 0:02:24.1]} 12. O-O {[%clk 0:02:31.6]}
12... Bb7 {[%clk 0:02:09.2]} 13. Qe4 {[%clk 0:02:21.3]} 13... g6 {[%clk
0:02:08.1]} 14. Bh6 {[%clk 0:02:21.1]} 14... Re8 {[%clk 0:02:08.1]} 15. Rab1
{[%clk 0:02:12]} 15... Qc7 {[%clk 0:02:05.7]} 16. h4 {[%clk 0:02:04.1]} 16...
Rab8 {[%clk 0:02:03.2]} 17. h5 {[%clk 0:02:01.9]} 17... c5 {[%clk 0:02:01.5]}
18. Qf4 {[%clk 0:01:53.7]} 18... d6 {[%clk 0:01:39.5]} 19. hxg6 {[%clk
0:01:44.5]} 19... hxg6 {[%clk 0:01:38.8]} 20. Rbc1 {[%clk 0:01:32.4]} 20... dxe5
{[%clk 0:01:33.3]} 21. Qg4 {[%clk 0:01:30]} 21... Bf6 {[%clk 0:01:11.1]} 22.
Bxg6 {[%clk 0:01:27.5]} 22... fxg6 {[%clk 0:01:08.9]} 23. Qxg6+ {[%clk
0:01:26.9]} 23... Bg7 {[%clk 0:01:09.1]} 24. Rcd1 {[%clk 0:01:15.8]} 24... Bc6
{[%clk 0:00:39.9]} 25. Rd3 {[%clk 0:01:10.2]} 25... Qf7 {[%clk 0:00:38.6]} 26.
Qg4 {[%clk 0:01:09]} 26... Kh8 {[%clk 0:00:30.2]} 27. Rh3 {[%clk 0:01:05.1]}
27... Kg8 {[%clk 0:00:30.2]} 28. Rg3 {[%clk 0:01:04.5]} 28... Re7 {[%clk
0:00:30.5]} 29. Bxg7 {[%clk 0:01:02.9]} 29... Qxg7 {[%clk 0:00:30.6]} 30. Qh4
{[%clk 0:01:02.9]} 30... Rbe8 {[%clk 0:00:18.5]} 31. Rxg7+ {[%clk 0:00:55.3]}
31... Rxg7 {[%clk 0:00:19.1]} 32. g3 {[%clk 0:00:53.7]} 32... Rf8 {[%clk
0:00:18.6]} 33. Qh6 {[%clk 0:00:40.3]} 33... Re8 {[%clk 0:00:12.8]} 34. Rd1
{[%clk 0:00:37.1]} 34... Rh7 {[%clk 0:00:11.7]} 35. Qg6+ {[%clk 0:00:36.5]}
35... Rg7 {[%clk 0:00:12.1]} 36. Qf6 {[%clk 0:00:36.3]} 36... Rh7 {[%clk
0:00:09.4]} 37. f3 {[%clk 0:00:27.1]} 37... Rf7 {[%clk 0:00:09.3]} 38. Qg5+
{[%clk 0:00:23.9]} 38... Rg7 {[%clk 0:00:09.1]} 39. Qxe5 {[%clk 0:00:23.7]}
39... Bxf3 {[%clk 0:00:09.2]} 40. Rf1 {[%clk 0:00:18.7]} 40... Bb7 {[%clk
0:00:09]} 41. Rf6 {[%clk 0:00:16]} 41... Rd8 {[%clk 0:00:05.6]} 42. Rxe6 {[%clk
0:00:14.1]} 42... Rd1+ {[%clk 0:00:05.6]} 43. Kf2 {[%clk 0:00:13.8]} 43... Rd2+
{[%clk 0:00:06.2]} 44. Ke3 {[%clk 0:00:13]} 44... Rxa2 {[%clk 0:00:04.1]} 45.
Re8+ {[%clk 0:00:13]} 45... Kh7 {[%clk 0:00:04.4]} 46. Qh5# {[%clk 0:00:13.5]}
1-0

[Event "Betsys MČR v online bleskovém šachu 2021"]
[Site "Chess.com"]
[Date "2021.04.17"]
[Round "11"]
[White "jsebesta"]
[Black "EliasD123"]
[Result "1-0"]
[WhiteElo "1637"]
[BlackElo "1325"]
[TimeControl "180+1"]
[EndTime "10:50:17 PDT"]
[Termination "Uživatel jsebesta zvítězil na čas"]

1. e4 {[%clk 0:03:00.9]} 1... e5 {[%clk 0:02:58.7]} 2. Nf3 {[%clk 0:02:59]} 2...
Nc6 {[%clk 0:02:56.8]} 3. Bc4 {[%clk 0:02:58.8]} 3... Nf6 {[%clk 0:02:56.8]} 4.
d4 {[%clk 0:02:58.5]} 4... exd4 {[%clk 0:02:56.2]} 5. O-O {[%clk 0:02:58.2]}
5... Bc5 {[%clk 0:02:55.8]} 6. e5 {[%clk 0:02:53.1]} 6... d5 {[%clk 0:02:52]} 7.
exf6 {[%clk 0:02:51.9]} 7... dxc4 {[%clk 0:02:50.9]} 8. Re1+ {[%clk 0:02:52.3]}
8... Be6 {[%clk 0:02:49.5]} 9. Ng5 {[%clk 0:02:51.5]} 9... Qd7 {[%clk 0:02:44]}
10. fxg7 {[%clk 0:02:51.1]} 10... Rg8 {[%clk 0:02:42.9]} 11. Nxe6 {[%clk
0:02:43]} 11... fxe6 {[%clk 0:02:40.5]} 12. Qh5+ {[%clk 0:02:43.1]} 12... Kd8
{[%clk 0:02:34.8]} 13. Qxc5 {[%clk 0:02:42.9]} 13... Qxg7 {[%clk 0:02:29.5]} 14.
g3 {[%clk 0:02:38.7]} 14... Kd7 {[%clk 0:02:22.7]} 15. Bf4 {[%clk 0:02:32.5]}
15... Raf8 {[%clk 0:02:17.2]} 16. Be5 {[%clk 0:02:24.9]} 16... Nxe5 {[%clk
0:02:12.7]} 17. Rxe5 {[%clk 0:02:24.7]} 17... Qf7 {[%clk 0:02:09.9]} 18. Qxd4+
{[%clk 0:02:23.5]} 18... Kc8 {[%clk 0:02:09.5]} 19. Nc3 {[%clk 0:02:12.5]} 19...
h5 {[%clk 0:01:42.9]} 20. Nb5 {[%clk 0:01:40.8]} 20... h4 {[%clk 0:01:29.1]} 21.
Qxa7 {[%clk 0:01:39.7]} 21... b6 {[%clk 0:01:18.4]} 22. Qa8+ {[%clk 0:01:06.3]}
22... Kd7 {[%clk 0:01:16.6]} 23. Rd1+ {[%clk 0:01:02.3]} 23... Ke7 {[%clk
0:01:15.4]} 24. Qg2 {[%clk 0:00:58.9]} 24... h3 {[%clk 0:01:03.1]} 25. Qf1
{[%clk 0:00:57.1]} 25... Qf6 {[%clk 0:00:54.2]} 26. Rde1 {[%clk 0:00:53.8]}
26... Rg7 {[%clk 0:00:23.2]} 27. Nxc7 {[%clk 0:00:48.9]} 27... Kd7 {[%clk
0:00:16.8]} 28. Nxe6 {[%clk 0:00:42.6]} 28... Re8 {[%clk 0:00:16]} 29. Rd5+
{[%clk 0:00:32.4]} 29... Kc8 {[%clk 0:00:14.5]} 30. Qxc4+ {[%clk 0:00:32.1]}
30... Kb7 {[%clk 0:00:13.9]} 31. Qe4 {[%clk 0:00:14.9]} 31... Ka6 {[%clk
0:00:09.6]} 32. Qe2+ {[%clk 0:00:07]} 32... Kb7 {[%clk 0:00:09]} 33. Nc5+ {[%clk
0:00:06.1]} 33... bxc5 {[%clk 0:00:08.4]} 34. Qxe8 {[%clk 0:00:06.8]} 34... Rf7
{[%clk 0:00:07.8]} 35. Qe3 {[%clk 0:00:05.8]} 35... Ka6 {[%clk 0:00:07.3]} 36.
Rxc5 {[%clk 0:00:05.2]} 36... Ka7 {[%clk 0:00:07.2]} 37. Ra5+ {[%clk 0:00:05.2]}
37... Kb7 {[%clk 0:00:06.7]} 38. Rb5+ {[%clk 0:00:05.2]} 38... Kc7 {[%clk
0:00:06.2]} 39. Qc5+ {[%clk 0:00:05.5]} 39... Kd7 {[%clk 0:00:05.9]} 40. Rb7+
{[%clk 0:00:05.8]} 1-0

[Event "Betsys MČR v online bleskovém šachu 2021"]
[Site "Chess.com"]
[Date "2021.04.17"]
[Round "11"]
[White "Maty122"]
[Black "Tlaskin"]
[Result "1-0"]
[WhiteElo "1059"]
[BlackElo "1325"]
[TimeControl "180+1"]
[EndTime "10:50:17 PDT"]
[Termination "Uživatel Maty122 zvítězil na čas"]

1. e4 {[%clk 0:03:00.9]} 1... c5 {[%clk 0:02:59]} 2. Nf3 {[%clk 0:02:57.7]} 2...
Nc6 {[%clk 0:02:58.4]} 3. c4 {[%clk 0:02:57.6]} 3... e6 {[%clk 0:02:54.3]} 4.
Nc3 {[%clk 0:02:53.8]} 4... Nge7 {[%clk 0:02:53.6]} 5. d4 {[%clk 0:02:41.8]}
5... cxd4 {[%clk 0:02:48.7]} 6. Nxd4 {[%clk 0:02:41.8]} 6... Ng6 {[%clk
0:02:47.6]} 7. Nxc6 {[%clk 0:02:34]} 7... bxc6 {[%clk 0:02:45.6]} 8. Be3 {[%clk
0:02:23.2]} 8... Bb4 {[%clk 0:02:43.6]} 9. Be2 {[%clk 0:02:14.7]} 9... Bxc3+
{[%clk 0:02:41.5]} 10. bxc3 {[%clk 0:02:15]} 10... O-O {[%clk 0:02:39.3]} 11.
Bf3 {[%clk 0:02:10.3]} 11... Ba6 {[%clk 0:02:35.5]} 12. Qa4 {[%clk 0:01:59]}
12... Bc8 {[%clk 0:02:07.9]} 13. O-O {[%clk 0:01:52.7]} 13... Ne5 {[%clk
0:02:07]} 14. Be2 {[%clk 0:01:35.8]} 14... f5 {[%clk 0:01:59.9]} 15. Bd4 {[%clk
0:01:29.7]} 15... Ng6 {[%clk 0:01:49.2]} 16. e5 {[%clk 0:01:11.2]} 16... d5
{[%clk 0:01:38.3]} 17. Bc5 {[%clk 0:01:07.6]} 17... Re8 {[%clk 0:01:18]} 18. Bd6
{[%clk 0:01:05]} 18... Qb6 {[%clk 0:00:41.2]} 19. c5 {[%clk 0:00:57.1]} 19...
Qd8 {[%clk 0:00:35.4]} 20. Qxc6 {[%clk 0:00:54.3]} 20... Bd7 {[%clk 0:00:32.7]}
21. Qa6 {[%clk 0:00:41.5]} 21... Qc8 {[%clk 0:00:30]} 22. Qxc8 {[%clk
0:00:37.6]} 22... Rexc8 {[%clk 0:00:28.8]} 23. Ba6 {[%clk 0:00:35.4]} 23... Re8
{[%clk 0:00:24.4]} 24. Bb7 {[%clk 0:00:33.7]} 24... Rad8 {[%clk 0:00:23]} 25. c6
{[%clk 0:00:30.5]} 25... Bc8 {[%clk 0:00:21.4]} 26. Rab1 {[%clk 0:00:28.4]}
26... Bxb7 {[%clk 0:00:20.5]} 27. cxb7 {[%clk 0:00:28.2]} 27... Rxd6 {[%clk
0:00:09.2]} 28. exd6 {[%clk 0:00:26.8]} 28... Rb8 {[%clk 0:00:08.6]} 29. d7
{[%clk 0:00:26.3]} 29... Kf7 {[%clk 0:00:05.8]} 30. d8=Q {[%clk 0:00:24.1]}
30... Rxd8 {[%clk 0:00:04.9]} 31. b8=Q {[%clk 0:00:23.9]} 31... Rxb8 {[%clk
0:00:05]} 32. Rxb8 {[%clk 0:00:24.3]} 32... Kf6 {[%clk 0:00:05.4]} 33. Rb7
{[%clk 0:00:24.3]} 33... Kg5 {[%clk 0:00:05.8]} 34. Rxa7 {[%clk 0:00:24.6]}
34... Ne5 {[%clk 0:00:06.1]} 35. Rb7 {[%clk 0:00:23.8]} 35... Nc4 {[%clk
0:00:06.2]} 36. a4 {[%clk 0:00:23]} 36... Kf6 {[%clk 0:00:06.1]} 37. Rb5 {[%clk
0:00:20.8]} 37... g5 {[%clk 0:00:05.6]} 38. a5 {[%clk 0:00:20.9]} 38... Nxa5
{[%clk 0:00:05]} 39. Rxa5 {[%clk 0:00:20.7]} 39... h5 {[%clk 0:00:05.3]} 40. Re1
{[%clk 0:00:20.3]} 40... Ke7 {[%clk 0:00:04.9]} 41. Ra6 {[%clk 0:00:20.6]} 41...
Kd7 {[%clk 0:00:04.5]} 42. Rexe6 {[%clk 0:00:20.4]} 42... Kc7 {[%clk 0:00:03.9]}
43. Re7+ {[%clk 0:00:20.4]} 43... Kb8 {[%clk 0:00:03.2]} 44. Raa7 {[%clk
0:00:19.4]} 1-0

[Event "Betsys MČR v online bleskovém šachu 2021"]
[Site "Chess.com"]
[Date "2021.04.17"]
[Round "11"]
[White "5265"]
[Black "Akdub"]
[Result "0-1"]
[WhiteElo "1665"]
[BlackElo "2102"]
[TimeControl "180+1"]
[EndTime "10:50:18 PDT"]
[Termination "Uživatel Akdub zvítězil matem"]

1. e4 {[%clk 0:03:00.9]} 1... e6 {[%clk 0:02:58.9]} 2. d4 {[%clk 0:03:00.5]}
2... d5 {[%clk 0:02:59.8]} 3. exd5 {[%clk 0:03:01]} 3... exd5 {[%clk 0:02:59.5]}
4. c4 {[%clk 0:03:01.5]} 4... c6 {[%clk 0:02:59.5]} 5. Nc3 {[%clk 0:03:01]} 5...
Nf6 {[%clk 0:02:59.6]} 6. Bf4 {[%clk 0:02:58.6]} 6... Be6 {[%clk 0:02:57]} 7.
Nf3 {[%clk 0:02:53.2]} 7... dxc4 {[%clk 0:02:54.6]} 8. Qa4 {[%clk 0:02:42.1]}
8... b5 {[%clk 0:02:46.3]} 9. Qc2 {[%clk 0:02:41.5]} 9... Bd6 {[%clk 0:02:39.2]}
10. Bg5 {[%clk 0:02:36.5]} 10... Nbd7 {[%clk 0:02:34.9]} 11. Ne4 {[%clk
0:02:30.7]} 11... Be7 {[%clk 0:02:33]} 12. Nxf6+ {[%clk 0:02:19.3]} 12... Bxf6
{[%clk 0:02:13.5]} 13. Be3 {[%clk 0:02:15.6]} 13... O-O {[%clk 0:02:06.5]} 14.
O-O-O {[%clk 0:02:14.8]} 14... Bd5 {[%clk 0:01:59.2]} 15. Be2 {[%clk 0:02:09.6]}
15... a5 {[%clk 0:01:57.2]} 16. h3 {[%clk 0:02:08.7]} 16... Nb6 {[%clk
0:01:55.2]} 17. g4 {[%clk 0:02:07.9]} 17... b4 {[%clk 0:01:52.8]} 18. g5 {[%clk
0:02:05.2]} 18... b3 {[%clk 0:01:46.4]} 19. axb3 {[%clk 0:02:04.2]} 19... cxb3
{[%clk 0:01:47.3]} 20. Qd3 {[%clk 0:01:59.9]} 20... Be7 {[%clk 0:01:45.5]} 21.
Rhg1 {[%clk 0:01:56.2]} 21... a4 {[%clk 0:01:43.5]} 22. h4 {[%clk 0:01:47.2]}
22... a3 {[%clk 0:01:13.8]} 23. bxa3 {[%clk 0:01:45.3]} 23... Rxa3 {[%clk
0:01:02.9]} 24. Kb2 {[%clk 0:01:44.2]} 24... Ra2+ {[%clk 0:00:53.4]} 25. Kb1
{[%clk 0:01:43.6]} 25... Bc4 {[%clk 0:00:43.9]} 26. Qe4 {[%clk 0:01:29.4]} 26...
Bxe2 {[%clk 0:00:40.8]} 27. Rd2 {[%clk 0:01:23.9]} 27... Bc4 {[%clk 0:00:34.9]}
28. Rxa2 {[%clk 0:01:17.5]} 28... bxa2+ {[%clk 0:00:33.8]} 29. Ka1 {[%clk
0:01:17.6]} 29... Nd5 {[%clk 0:00:30.2]} 30. h5 {[%clk 0:01:13.7]} 30... Re8
{[%clk 0:00:27.8]} 31. g6 {[%clk 0:01:09.6]} 31... hxg6 {[%clk 0:00:25.8]} 32.
hxg6 {[%clk 0:01:09.3]} 32... Nxe3 {[%clk 0:00:20.4]} 33. gxf7+ {[%clk
0:01:08.1]} 33... Bxf7 {[%clk 0:00:19.9]} 34. fxe3 {[%clk 0:01:06.5]} 34... Bf6
{[%clk 0:00:18.9]} 35. Qg4 {[%clk 0:01:03.8]} 35... c5 {[%clk 0:00:18.2]} 36.
Ne5 {[%clk 0:01:02.9]} 36... cxd4 {[%clk 0:00:16.2]} 37. exd4 {[%clk 0:01:02.2]}
37... Rxe5 {[%clk 0:00:14.5]} 38. Rd1 {[%clk 0:00:51.4]} 38... Re1 {[%clk
0:00:11.3]} 39. Qe6 {[%clk 0:00:15.6]} 39... Bxd4+ {[%clk 0:00:09.5]} 40. Kxa2
{[%clk 0:00:11.6]} 40... Bxe6+ {[%clk 0:00:08.3]} 41. Ka3 {[%clk 0:00:09.3]}
41... Rxd1 {[%clk 0:00:06.3]} 42. Kb4 {[%clk 0:00:09.8]} 42... Rc1 {[%clk
0:00:05.6]} 43. Kb5 {[%clk 0:00:09.5]} 43... Qb8+ {[%clk 0:00:05.5]} 44. Ka6
{[%clk 0:00:09.6]} 44... Ra1# {[%clk 0:00:05.7]} 0-1